bitfinex/quotes_SOLUSD_20250918
["timestamp","ask_amount","ask_price","bid_price","bid_amount"]
[1758185268790,0.72,246.59,246.57,30.05557616]
[1758185269493,0.78,246.61,246.57,30.05557616]
[1758185269705,0.06,246.61,246.57,30.05557616]
[1758185269894,0.06,246.61,246.57,30.71557616]
[1758185270291,0.78,246.61,246.58,26.0]
[1758185270511,0.06,246.61,246.58,26.0]
[1758185270894,0.06,246.61,246.59,4.05531448]
[1758185271095,0.78,246.61,246.58,26.0]
[1758185271406,0.06,246.61,246.58,30.71543281]
[1758185271715,0.06,246.61,246.59,26.66]
[1758185272307,0.06,246.61,246.59,26.0]
[1758185272617,0.06,246.61,246.6,0.66]
[1758185273012,0.06,246.61,246.6,4.71515004]
[1758185273219,0.06,246.61,246.6,4.05515004]
[1758185273523,0.06,246.61,246.6,4.71515004]
[1758185273898,0.06,246.61,246.6,30.71515004]
[1758185274606,0.06,246.61,246.6,30.05515004]
[1758185276623,0.06,246.61,246.6,26.0]
[1758185276804,0.06,246.61,246.59,0.03]
[1758185276805,0.77,246.61,246.59,0.03]
[1758185277000,0.77,246.61,246.59,26.03]
[1758185278222,0.06,246.61,246.59,26.03]
[1758185280638,0.06,246.61,246.59,30.74528744]
[1758185281502,0.06,246.61,246.59,30.08528744]
[1758185281909,0.71,246.6,246.59,26.03]
[1758185283021,0.06,246.61,246.59,26.03]
[1758185283222,0.72,246.6,246.59,26.03]
[1758185283609,0.72,246.6,246.59,0.03]
[1758185286504,0.06,246.61,246.59,0.03]
[1758185289126,0.72,246.6,246.59,0.03]
[1758185290939,0.06,246.61,246.59,0.03]
[1758185291119,0.78,246.61,246.59,0.03]
[1758185292720,0.06,246.61,246.6,0.7]
[1758185293114,0.06,246.61,246.6,4.75515004]
[1758185293317,0.06,246.61,246.6,30.75515004]
[1758185293839,0.06,246.61,246.6,62.33515004]
[1758185294037,0.06,246.61,246.6,143.13515004]
[1758185294215,0.06,246.61,246.6,63.95730872]
[1758185294418,0.06,246.61,246.6,69.43316529]
[1758185295743,0.06,246.62,246.6,69.43316529]
[1758185295948,0.06,246.62,246.61,0.7]
[1758185296747,0.82,246.75,246.65,26.0]
[1758185297042,0.82,246.75,246.65,57.58]
[1758185297341,0.82,246.75,246.66,0.7]
[1758185297544,0.82,246.75,246.66,2.32182983]
[1758185297723,0.72,246.74,246.66,2.32182983]
[1758185298337,0.72,246.74,246.66,6.37599345]
[1758185299361,0.1,246.75,246.66,87.58140981]
[1758185299536,0.1,246.75,246.66,86.47599345]
[1758185299740,1e-08,246.69,246.67,14.57991715]
[1758185300035,0.1,246.75,246.71,26.0]
[1758185300233,0.1,246.75,246.72,31.58]
[1758185300429,0.1,246.75,246.72,35.63317769]
[1758185300743,0.1,246.75,246.72,37.95461306]
[1758185303939,0.1,246.75,246.72,36.33317769]
[1758185304742,0.1,246.75,246.72,36.31317769]
[1758185307532,0.1,246.75,246.72,4.75317769]
[1758185307732,0.1,246.75,246.72,35.61317769]
[1758185308156,0.1,246.75,246.72,5.15849545]
[1758185308361,0.72,246.84,246.77,26.0]
[1758185308535,0.72,246.84,246.81,26.0]
[1758185308738,0.72,246.84,246.82,26.0]
[1758185309762,0.72,246.84,246.82,30.05144499]
[1758185310752,0.78,246.84,246.82,30.05144499]
[1758185310956,0.06,246.84,246.82,30.05144499]
[1758185312229,0.06,246.84,246.83,0.71]
[1758185312734,0.06,246.84,246.82,35.61144499]
[1758185313048,0.06,246.84,246.82,36.32144499]
[1758185313239,0.06,246.84,246.82,37.94228904]
[1758185313956,0.06,246.84,246.8,10.12928006]
[1758185313957,0.66,246.83,246.8,4.05176626]
[1758185314159,0.06,246.84,246.83,26.0]
[1758185314760,0.72,246.84,246.83,26.0]
[1758185315051,0.72,246.84,246.83,30.05137138]
[1758185315438,0.06,246.84,246.83,30.05137138]
[1758185318054,0.06,246.84,246.83,4.05137138]
[1758185318249,0.06,246.84,246.83,4.76137138]
[1758185318651,0.06,246.84,246.83,4.05137138]
[1758185321547,0.06,246.84,246.83,4.76137138]
[1758185322159,0.06,246.84,246.83,85.56137138]
[1758185322469,0.06,246.84,246.83,87.18208409]
[1758185322667,0.06,246.84,246.83,118.01208409]
[1758185322868,0.06,246.84,246.83,116.39137138]
[1758185323059,0.06,246.84,246.83,84.85137138]
[1758185323248,0.72,246.84,246.83,80.8]
[1758185323849,0.06,246.84,246.83,80.8]
[1758185324050,0.72,246.84,246.83,80.8]
[1758185324779,0.06,246.84,246.83,80.8]
[1758185325267,0.06,246.84,246.83,26.0]
[1758185325944,0.06,246.84,246.83,26.71]
[1758185326367,0.06,246.84,246.83,58.25]
[1758185326848,0.06,246.84,246.83,57.54]
[1758185327170,0.06,246.84,246.83,26.0]
[1758185328965,0.06,246.84,246.83,26.71]
[1758185329959,0.1,246.86,246.84,4.05120725]
[1758185330161,0.1,246.86,246.85,31.54]
[1758185330466,0.1,246.86,246.84,30.76120725]
[1758185330667,0.1,246.86,246.85,31.54]
[1758185332074,0.1,246.86,246.84,30.05120725]
[1758185332279,0.1,246.86,246.85,32.25]
[1758185333067,0.1,246.86,246.85,33.87058139]
[1758185334375,13.87991715,247.0,246.89,26.0]
[1758185335551,13.87991715,247.0,246.9,4.05022276]
[1758185336570,0.67,246.98,246.9,4.05022276]
[1758185336956,4.71894955,246.98,246.9,4.05022276]
[1758185339280,0.1,246.99,246.9,4.05022276]
[1758185339464,4.14889395,246.99,246.9,4.05022276]
[1758185339988,4.14889395,246.99,246.9,30.05022276]
[1758185340185,4.14889395,246.99,246.9,26.0]
[1758185340367,14.54991715,246.98,246.9,26.0]
[1758185340563,14.54991715,246.98,246.86,12.15386796]
[1758185340564,14.54991715,246.98,246.89,26.0]
[1758185341378,4.04907478,246.97,246.88,30.05050912]
[1758185342380,4.0489333,246.98,246.9,26.0]
[1758185342581,4.0489333,246.98,246.9,25.0]
[1758185342781,0.1,246.99,246.9,25.0]
[1758185343079,0.1,246.99,246.88,14.1768863]
[1758185343784,4.14879149,246.99,246.88,14.1768863]
[1758185344665,4.14879149,246.99,246.91,30.04995791]
[1758185345385,4.14879149,246.99,246.91,26.0]
[1758185346864,13.59559401,246.97,246.88,26.0]
[1758185347073,0.67,246.96,246.88,26.0]
[1758185347479,0.67,246.96,246.88,30.05051948]
[1758185348183,13.59559401,246.97,246.87,0.68]
[1758185348508,0.67,246.95,246.87,0.68]
[1758185348697,0.28432314,246.96,246.87,4.7306584]
[1758185348864,4.04909942,246.97,246.89,26.0]
[1758185349064,4.04909942,246.97,246.9,0.68]
[1758185349263,17.80447868,246.99,246.9,0.68]
[1758185349666,49.34447868,246.99,246.9,0.68]
[1758185349878,31.54,246.98,246.9,0.68]
[1758185350494,35.58896548,246.98,246.9,4.73007007]
[1758185351200,35.58896548,246.98,246.9,0.68]
[1758185351407,35.58896548,246.98,246.89,26.0]
[1758185351605,0.67,246.97,246.89,26.0]
[1758185351902,0.67,246.96,246.88,4.05049572]
[1758185352087,32.21,246.96,246.88,4.05049572]
[1758185352399,4.04940271,246.95,246.87,0.68]
[1758185352777,4.04940271,246.95,246.87,4.73066693]
[1758185353903,4.04940271,246.95,246.84,26.0]
[1758185353904,4.04940271,246.95,246.85,4.05104314]
[1758185354106,32.21,246.96,246.88,26.68]
[1758185354306,4.71926533,246.96,246.88,26.68]
[1758185354483,31.54,246.95,246.88,26.68]
[1758185355004,31.54,246.96,246.89,0.68]
[1758185356382,31.54,246.96,246.89,4.73024533]
[1758185357001,35.5892854,246.96,246.89,4.73024533]
[1758185357208,0.67,246.95,246.88,26.0]
[1758185357888,0.67,246.95,246.88,26.68]
[1758185358999,4.04944874,246.95,246.89,0.68]
[1758185359200,4.71910946,246.97,246.89,0.68]
[1758185359406,31.52,246.96,246.89,0.68]
[1758185360408,4.04940271,246.95,246.89,0.68]
[1758185360910,32.19,246.96,246.89,0.68]
[1758185361099,31.52,246.95,246.89,4.73035712]
[1758185361592,31.52,246.95,246.9,0.68]
[1758185361922,31.52,246.95,246.91,0.68]
[1758185362205,31.52,246.95,246.92,0.68]
[1758185362506,17.92888919,246.98,246.92,0.68]
[1758185362707,0.83,246.99,246.88,26.0]
[1758185362708,0.83,246.99,246.93,0.68]
[1758185362908,0.16,246.99,246.93,0.68]
[1758185363092,31.52,246.98,246.93,0.68]
[1758185364004,0.16,246.99,246.94,0.68]
[1758185364208,0.16,246.99,246.95,0.68]
[1758185364514,0.16,246.99,246.95,4.72935873]
[1758185365429,0.16,246.99,246.96,0.68]
[1758185367015,0.16,246.99,246.97,0.68]
[1758185368197,0.16,246.99,246.98,0.68]
[1758185371415,0.16,246.99,246.96,0.68]
[1758185372609,0.16,246.99,246.93,4.04973069]
[1758185372819,0.16,246.99,246.94,0.71]
[1758185373011,0.16,246.99,246.95,0.71]
[1758185374519,0.16,246.99,246.96,0.71]
[1758185375729,0.16,246.99,246.97,0.71]
[1758185375899,31.68,246.99,246.97,0.71]
[1758185379822,0.16,246.99,246.97,0.71]
[1758185380019,31.68,246.99,246.97,0.71]
[1758185380230,0.16,246.99,246.97,0.71]
[1758185380422,31.68,246.99,246.97,0.71]
[1758185381629,0.16,246.99,246.97,0.71]
[1758185382006,31.68,246.99,246.97,0.71]
[1758185382207,31.68,246.99,246.98,0.71]
[1758185384235,0.16,246.99,246.98,0.71]
[1758185391838,0.16,246.99,246.97,4.0490378]
[1758185391839,0.16,246.99,246.95,30.75926529]
[1758185392244,0.16,246.99,246.96,0.71]
[1758185392447,0.16,246.99,246.97,0.71]
[1758185392648,0.16,246.99,246.98,0.71]
[1758185393244,0.06,247.02,246.98,26.71]
[1758185393577,0.06,247.02,247.0,26.0]
[1758185393941,0.06,247.02,247.01,0.71]
[1758185397052,0.06,247.02,247.01,26.71]
[1758185397863,0.06,247.02,247.01,0.71]
[1758185398157,0.06,247.02,247.01,26.71]
[1758185399468,0.06,247.02,247.01,0.71]
[1758185401068,0.06,247.02,247.01,2.3296627]
[1758185406580,0.06,247.02,247.01,2.3296627]
[1758185406965,0.06,247.04,247.03,26.0]
[1758185407162,0.06,247.04,247.03,57.48]
[1758185407370,0.06,247.04,247.03,58.19]
[1758185407770,0.06,247.04,247.03,69.52501548]
[1758185409185,0.06,247.04,247.03,83.40493263]
[1758185409368,0.1,247.09,247.07,26.0]
[1758185409558,0.1,247.09,247.08,31.48]
[1758185409958,0.1,247.09,247.08,37.24478583]
[1758185410163,0.1,247.09,247.08,5.76478583]
[1758185410563,0.1,247.09,247.07,26.0]
[1758185411493,0.1,247.09,247.08,6.32222882]
[1758185412296,0.1,247.09,247.08,28.27495669]
[1758185412478,0.1,247.09,247.08,2.27495669]
[1758185415192,0.1,247.09,247.07,33.49205586]
[1758185415398,0.1,247.09,247.07,34.20205586]
[1758185416199,0.1,247.09,247.08,4.04606559]
[1758185416378,0.1,247.09,247.07,34.20205586]
[1758185416581,0.1,247.09,247.08,2.37495669]
[1758185417197,0.1,247.09,247.07,33.49205586]
[1758185417502,0.1,247.09,247.07,30.04741397]
[1758185417673,0.1,247.09,247.07,34.09373317]
[1758185418500,0.79,247.09,247.07,30.0463192]
[1758185418807,0.69,247.08,247.04,80.8]
[1758185419100,0.69,247.07,247.06,26.0]
[1758185419301,0.79,247.09,247.06,26.0]
[1758185419668,0.69,247.08,247.06,26.0]
[1758185420092,0.1,247.09,247.06,26.0]
[1758185420399,0.69,247.08,247.06,26.0]
[1758185420781,2.96495669,247.07,246.98,29.95631317]
[1758185421071,0.69,247.06,247.05,0.03]
[1758185422164,2.96495669,247.06,247.05,0.03]
[1758185422369,7.01255646,247.06,247.05,0.03]
[1758185422790,38.47255646,247.06,247.05,0.03]
[1758185423375,52.35247361,247.06,247.05,0.03]
[1758185424704,54.6274303,247.06,247.05,0.03]
[1758185425799,23.1674303,247.06,247.05,0.03]
[1758185426422,54.6274303,247.06,247.05,0.03]
[1758185426917,23.1674303,247.06,247.05,0.03]
[1758185427311,54.6274303,247.06,247.05,0.03]
[1758185427701,23.1674303,247.06,247.05,0.03]
[1758185427904,54.6274303,247.06,247.05,0.03]
[1758185428403,13.87991715,247.01,247.0,0.03]
[1758185428606,16.15487384,247.01,247.0,0.03]
[1758185428787,16.84487384,247.01,247.0,0.03]
[1758185428987,48.30487384,247.01,247.0,0.03]
[1758185429188,16.84487384,247.01,247.0,0.03]
[1758185429388,48.32487384,247.01,247.0,0.03]
[1758185429618,29.00021915,247.01,247.0,0.03]
[1758185429820,60.48021915,247.01,247.0,0.03]
[1758185430314,64.52863824,247.01,247.0,0.03]
[1758185431100,33.04863824,247.01,247.0,0.03]
[1758185431721,64.52863824,247.01,247.0,0.03]
[1758185432502,33.04863824,247.01,247.0,0.03]
[1758185432822,64.52863824,247.01,247.0,0.03]
[1758185434520,63.83863824,247.01,247.0,0.03]
[1758185434701,64.49863824,247.01,247.0,0.03]
[1758185436320,33.01863824,247.01,247.0,0.03]
[1758185436519,64.49863824,247.01,247.0,0.03]
[1758185437716,30.74368155,247.01,247.0,0.03]
[1758185437911,13.59559401,247.01,247.0,0.75]
[1758185438118,13.87991715,247.01,247.0,0.75]
[1758185438419,31.48,247.01,247.0,0.75]
[1758185439209,33.75495669,247.01,247.0,0.03]
[1758185440205,2.27495669,247.01,247.0,0.03]
[1758185440504,4.0483095,247.02,247.0,0.75]
[1758185440699,31.48,247.01,247.0,0.75]
[1758185442608,4.1083095,247.02,247.0,0.75]
[1758185442922,31.48,247.01,247.0,0.75]
[1758185443101,31.48,247.01,247.0,0.03]
[1758185443417,47.63487384,247.01,247.0,0.03]
[1758185443917,48.29487384,247.01,247.0,0.03]
[1758185444420,59.78972667,247.01,247.0,0.03]
[1758185444626,45.35991715,247.01,247.0,0.03]
[1758185444806,13.87991715,247.01,247.0,0.75]
[1758185445002,13.87991715,247.01,247.0,0.03]
[1758185445208,47.63487384,247.01,247.0,0.03]
[1758185445408,16.15487384,247.01,247.0,0.03]
[1758185445622,47.63487384,247.01,247.0,0.03]
[1758185445918,16.15487384,247.01,247.0,0.03]
[1758185446132,47.63487384,247.01,247.0,0.03]
[1758185449205,45.33991715,247.01,247.0,0.75]
[1758185449425,13.87991715,247.01,247.0,0.75]
[1758185449623,45.33991715,247.01,247.0,0.75]
[1758185450645,0.06,247.02,247.01,30.04841909]
[1758185450940,0.06,247.05,247.01,30.04841909]
[1758185451233,0.06,247.05,247.02,0.72]
[1758185451714,0.06,247.05,247.03,1.61972829]
[1758185452104,0.06,247.05,247.04,4.76792746]
[1758185453047,0.06,247.05,247.04,16.91588964]
[1758185456136,0.06,247.05,247.04,12.86796218]
[1758185456628,0.06,247.05,247.04,0.72]
[1758185457431,0.06,247.05,247.02,4.04819214]
[1758185457746,0.06,247.05,247.04,0.66]
[1758185459129,0.06,247.05,247.01,0.66]
[1758185459342,0.06,247.05,247.02,0.66]
[1758185459726,0.06,247.05,247.03,0.66]
[1758185460225,0.06,247.05,247.04,0.66]
[1758185460920,0.06,247.05,247.01,26.66]
[1758185461239,0.77,247.05,247.0,0.03]
[1758185461428,0.06,247.05,247.01,0.66]
[1758185461635,0.06,247.05,247.02,0.66]
[1758185462017,31.46,247.04,247.03,0.66]
[1758185462217,0.06,247.05,247.03,0.66]
[1758185462429,0.06,247.05,247.01,30.0483395]
[1758185462430,0.06,247.05,247.04,0.68]
[1758185463529,0.06,247.05,247.04,26.68]
[1758185464126,0.06,247.05,247.04,30.72792746]
[1758185466153,0.06,247.05,247.04,26.0]
[1758185466439,0.06,247.05,247.04,26.68]
[1758185468524,0.06,247.05,247.01,26.0]
[1758185469134,31.52,247.05,247.01,26.0]
[1758185470826,0.06,247.05,247.01,26.0]
[1758185471028,31.52,247.05,247.01,26.0]
[1758185471539,0.06,247.05,247.01,26.68]
[1758185471921,31.52,247.05,247.01,26.68]
[1758185473229,32.22,247.05,247.0,0.03]
[1758185473630,32.22,247.05,247.0,0.71]
[1758185475946,0.7,247.04,247.0,0.03]
[1758185476546,0.06,247.05,247.0,0.71]
[1758185476750,31.44,247.04,247.0,0.71]
[1758185477046,31.44,247.04,247.01,0.68]
[1758185477759,0.06,247.05,247.01,0.68]
[1758185477940,31.44,247.04,247.01,0.68]
[1758185478343,31.44,247.04,247.0,0.03]
[1758185478531,31.44,247.04,247.01,0.68]
[1758185478854,0.06,247.05,247.01,0.68]
[1758185479054,31.44,247.04,247.01,0.68]
[1758185479555,0.06,247.05,247.01,0.68]
[1758185479728,31.44,247.04,247.01,0.71]
[1758185480555,0.06,247.05,247.01,0.71]
[1758185480749,31.44,247.04,247.01,0.71]
[1758185481176,0.7,247.03,247.01,0.03]
[1758185481354,31.44,247.04,247.01,0.03]
[1758185481549,31.44,247.03,247.01,0.03]
[1758185482957,0.7,247.03,247.01,0.03]
[1758185483260,32.14,247.03,247.01,0.03]
[1758185483450,31.44,247.03,247.01,0.03]
[1758185483753,32.14,247.03,247.01,0.03]
[1758185483958,31.44,247.03,247.01,0.03]
[1758185485660,0.06,247.05,247.01,0.71]
[1758185485848,31.44,247.03,247.01,0.71]
[1758185486559,31.44,247.03,247.01,0.03]
[1758185487445,0.06,247.05,247.01,0.03]
[1758185487646,0.06,247.05,247.02,0.68]
[1758185488264,0.06,247.05,247.03,0.68]
[1758185488677,0.06,247.05,247.04,0.68]
[1758185489564,0.06,247.05,247.04,4.72792746]
[1758185492158,1e-08,247.05,247.04,30.72792746]
[1758185495357,1e-08,247.05,247.04,4.72792746]
[1758185497278,1e-08,247.05,247.04,4.04792746]
[1758185498982,1e-08,247.05,247.04,4.74792746]
[1758185501874,1e-08,247.05,247.02,4.7482552]
[1758185502607,1e-08,247.05,247.03,0.7]
[1758185503107,1e-08,247.05,247.04,0.7]
[1758185504385,1e-08,247.05,247.04,4.74792746]
[1758185513997,1e-08,247.05,247.04,4.04792746]
[1758185514201,0.70000001,247.05,247.03,26.0]
[1758185514404,0.7,247.04,247.01,4.07833276]
[1758185514614,0.7,247.03,247.01,4.07833276]
[1758185515323,1e-08,247.05,247.01,4.07833276]
[1758185515620,1e-08,247.05,247.01,0.03]
[1758185515925,0.70000001,247.05,247.01,0.03]
[1758185516089,1e-08,247.05,247.02,0.67]
[1758185518099,1e-08,247.05,247.03,4.04809132]
[1758185519326,1e-08,247.05,247.01,0.03]
[1758185519625,1e-08,247.05,247.02,0.67]
[1758185520921,1e-08,247.05,247.03,4.04809132]
[1758185521819,1e-08,247.05,247.04,0.67]
[1758185526930,1e-08,247.05,247.04,2.28946598]
[1758185528200,1e-08,247.05,247.03,4.04809132]
[1758185528429,0.68000001,247.05,247.03,4.04809132]
[1758185528613,0.68000001,247.05,247.03,30.04809132]
[1758185528833,0.68000001,247.05,247.01,4.07828793]
[1758185529125,0.68,247.04,247.01,4.07828793]
[1758185530102,0.68,247.03,247.01,4.07828793]
[1758185532124,0.68,247.02,247.01,0.03]
[1758185532321,0.68,247.04,247.01,0.03]
[1758185532524,0.68,247.03,247.01,0.03]
[1758185532733,1e-08,247.05,247.01,0.03]
[1758185532922,0.68,247.02,247.01,0.03]
[1758185537528,0.68000001,247.05,247.01,0.03]
[1758185537722,0.68,247.04,247.01,0.03]
[1758185538820,0.68,247.03,247.01,0.03]
[1758185539328,0.68,247.02,247.01,0.03]
[1758185540540,4.7282552,247.02,247.01,0.03]
[1758185541726,5.01257834,247.02,247.01,0.03]
[1758185543532,44.60817235,247.02,247.01,0.03]
[1758185544027,46.2290164,247.02,247.01,0.03]
[1758185546358,42.15368992,247.01,247.0,1e-08]
[1758185546826,42.83368992,247.01,247.0,1e-08]
[1758185547414,40.55991715,247.01,247.0,1e-08]
[1758185547634,42.83368992,247.01,247.0,1e-08]
[1758185548340,74.23368992,247.01,247.0,1e-08]
[1758185549117,75.85459966,247.01,247.0,1e-08]
[1758185553323,44.45459966,247.01,247.0,1e-08]
[1758185553846,75.85459966,247.01,247.0,1e-08]
[1758185556337,73.58082689,247.01,247.0,1e-08]
[1758185556539,75.85459966,247.01,247.0,1e-08]
[1758185556929,39.59559401,247.01,247.0,1e-08]
[1758185557251,70.99559401,247.01,247.0,1e-08]
[1758185557542,13.87991715,247.01,247.0,1e-08]
[1758185557938,45.27991715,247.01,247.0,1e-08]
[1758185558123,13.59559401,247.01,247.0,1e-08]
[1758185558327,44.99559401,247.01,247.0,0.70000001]
[1758185558557,45.27991715,247.01,247.0,0.70000001]
[1758185558747,13.73775558,247.01,247.0,0.70000001]
[1758185558936,45.27991715,247.01,247.0,1e-08]
[1758185559454,13.87991715,247.01,247.0,1e-08]
[1758185559747,45.27991715,247.01,247.0,0.70000001]
[1758185560245,0.28432314,247.01,247.0,0.70000001]
[1758185560429,13.59559401,247.03,247.0,0.70000001]
[1758185560828,31.54216157,247.02,247.0,0.70000001]
[1758185561543,0.28432314,247.02,247.0,0.70000001]
[1758185561852,31.4,247.01,247.0,0.70000001]
[1758185562227,0.28432314,247.02,247.0,0.70000001]
[1758185562532,31.4,247.01,247.0,0.70000001]
[1758185563150,0.28432314,247.02,247.0,0.70000001]
[1758185563331,31.4,247.01,247.0,0.70000001]
[1758185566539,31.46,247.01,247.0,0.70000001]
[1758185568832,46.01991715,247.01,247.0,1e-08]
[1758185569032,45.33991715,247.01,247.0,1e-08]
[1758185570140,13.93991715,247.01,247.0,1e-08]
[1758185570341,45.31991715,247.01,247.0,1e-08]
[1758185575547,13.93991715,247.01,247.0,1e-08]
[1758185575749,46.77676657,247.01,247.0,1e-08]
[1758185575949,47.44676657,247.01,247.0,1e-08]
[1758185577751,73.44676657,247.01,247.0,1e-08]
[1758185577958,75.06767631,247.01,247.0,1e-08]
[1758185578963,43.01767631,247.01,247.0,1e-08]
[1758185579160,74.39767631,247.01,247.0,1e-08]
[1758185579862,72.94082689,247.01,247.0,1e-08]
[1758185580657,75.06767631,247.01,247.0,1e-08]
[1758185580851,74.39767631,247.01,247.0,1e-08]
[1758185581274,72.77676657,247.01,247.0,1e-08]
[1758185581652,73.44676657,247.01,247.0,1e-08]
[1758185583468,72.77676657,247.01,247.0,1e-08]
[1758185587372,73.46676657,247.01,247.0,1e-08]
[1758185589149,75.0876763,247.01,247.0,1e-08]
[1758185590565,41.33676657,246.98,246.97,1e-08]
[1758185590749,72.71676657,246.98,246.97,1e-08]
[1758185590953,73.40676657,246.98,246.97,1e-08]
[1758185592487,77.45567741,246.98,246.97,1e-08]
[1758185592861,89.8125693,246.98,246.97,1e-08]
[1758185596477,0.28432314,246.97,246.95,1e-08]
[1758185596687,46.71676657,246.96,246.95,1e-08]
[1758185597285,49.30915589,246.96,246.95,1e-08]
[1758185597482,50.76600531,246.96,246.95,1e-08]
[1758185599082,52.38724354,246.96,246.95,1e-08]
[1758185602697,54.53409296,246.96,246.95,1e-08]
[1758185602993,54.53409296,246.96,246.95,0.03000001]
[1758185603192,54.59409296,246.96,246.95,0.03000001]
[1758185604896,41.33676657,246.93,246.92,1e-08]
[1758185605191,72.69676657,246.93,246.92,1e-08]
[1758185605398,71.23991715,246.93,246.92,0.66000001]
[1758185605597,72.69676657,246.93,246.92,0.66000001]
[1758185605780,39.87991715,246.93,246.92,0.66000001]
[1758185605981,71.23991715,246.93,246.92,0.66000001]
[1758185606868,75.28964784,246.93,246.92,0.66000001]
[1758185609995,75.28964784,246.93,246.92,1e-08]
[1758185610199,76.74649726,246.93,246.92,1e-08]
[1758185610496,45.38649726,246.93,246.92,1e-08]
[1758185610680,76.74649726,246.93,246.92,1e-08]
[1758185611181,76.74649726,246.93,246.92,0.66000001]
[1758185612491,76.74649726,246.93,246.92,1e-08]
[1758185613476,75.28964784,246.93,246.92,1e-08]
[1758185613675,75.28964784,246.93,246.92,0.66000001]
[1758185614785,13.87991715,246.93,246.92,0.66000001]
[1758185614974,31.36,246.93,246.92,0.66000001]
[1758185615175,31.64432314,246.93,246.92,0.66000001]
[1758185615375,31.36,246.93,246.92,0.66000001]
[1758185615596,31.64432314,246.93,246.92,0.66000001]
[1758185620001,31.36,246.93,246.92,0.66000001]
[1758185620688,4.10933808,246.96,246.92,0.66000001]
[1758185620890,31.36,246.95,246.92,0.66000001]
[1758185621403,31.42,246.95,246.92,0.66000001]
[1758185621982,0.06,246.95,246.92,0.66000001]
[1758185622700,31.36,246.94,246.92,0.66000001]
[1758185623683,31.36,246.94,246.92,1e-08]
[1758185623882,17.92964784,246.93,246.92,1e-08]
[1758185624389,19.38649726,246.93,246.92,1e-08]
[1758185624581,17.92964784,246.93,246.92,1e-08]
[1758185628604,19.38649726,246.93,246.92,1e-08]
[1758185630505,17.92964784,246.93,246.92,1e-08]
[1758185630704,20.06649726,246.93,246.92,1e-08]
[1758185630907,19.38649726,246.93,246.92,1e-08]
[1758185631587,17.92964784,246.93,246.92,0.66000001]
[1758185631791,35.67405383,246.93,246.92,0.66000001]
[1758185632183,35.53189226,246.93,246.92,0.66000001]
[1758185632502,35.67405383,246.93,246.92,0.66000001]
[1758185632887,4.33405383,246.93,246.92,0.66000001]
[1758185633088,35.67405383,246.93,246.92,0.66000001]
[1758185634108,4.33405383,246.93,246.92,0.66000001]
[1758185634405,35.67405383,246.93,246.92,1e-08]
[1758185635199,49.26964784,246.93,246.92,1e-08]
[1758185635721,50.72649726,246.93,246.92,1e-08]
[1758185636209,49.26964784,246.93,246.92,1e-08]
[1758185637207,49.26964784,246.93,246.92,0.68000001]
[1758185637594,0.28432314,246.93,246.92,0.68000001]
[1758185638112,31.62432314,246.93,246.92,0.68000001]
[1758185639203,4.04965977,246.94,246.92,0.68000001]
[1758185639393,31.34,246.93,246.92,1e-08]
[1758185640110,31.34,246.93,246.92,0.68000001]